fUST/lending_fUST_20250618
["ID","MTS","AMOUNT","RATE_DAILY","PERIOD"]
[366324195,1750187452039,-151.0,0.00024565,7]
[366324196,1750187452048,-151.0,0.00024565,7]
[366324197,1750187452058,-18011.00452126,0.00024566,7]
[366324198,1750187452067,-35303.53907649,0.00024566,7]
[366324199,1750187452076,-500.0,0.00024567,2]
[366324200,1750187452086,-235.70188856,0.00024573,2]
[366324201,1750187452095,-1511.18659776,0.00024575,2]
[366324202,1750187452107,-614.78340224,0.00024575,2]
[366324203,1750187452117,-337.55878697,0.00024598,2]
[366324204,1750187452188,-5000.0,0.00021698,2]
[366324205,1750187452198,-460.0,0.00021917,6]
[366324206,1750187452211,-460.0,0.00022027,6]
[366324207,1750187452221,-460.0,0.00022136,6]
[366324208,1750187452231,-460.0,0.00022246,6]
[366324209,1750187452242,-460.0,0.00022356,6]
[366324210,1750187452252,-460.0,0.00022465,6]
[366324211,1750187452261,-460.73,0.00022575,6]
[366324212,1750187452271,-4184.29794421,0.00024598,2]
[366324213,1750188422803,332.264464,0.00013699,2]
[366324216,1750188518547,164.05153207,0.0002,30]
[366324305,1750188636465,-5000.0,0.000198,2]
[366324306,1750188636475,-792.94556754,0.0002,2]
[366324307,1750188636487,-332.264464,0.00020187,2]
[366324308,1750188636496,-179.859304,0.00020718,2]
[366324309,1750188636506,-500.0,0.00020762,2]
[366324310,1750188636516,-160.0,0.0002169,2]
[366324311,1750188636525,-338.7420795,0.000219,6]
[366324312,1750188636535,-300.0,0.00021915,2]
[366324313,1750188636544,-300.0,0.00021915,2]
[366324314,1750188636555,-1349.16360151,0.00021916,2]
[366324315,1750188636568,-408.89247069,0.00021916,2]
[366324316,1750188636577,-289.03874918,0.00021916,2]
[366324317,1750188636587,-500.0,0.00021916,2]
[366324318,1750188636596,-165.80691989,0.00021916,2]
[366324319,1750188636607,-160.867,0.00021916,2]
[366324320,1750188636616,-440.0,0.00021917,6]
[366324321,1750188636627,-440.0,0.00021917,6]
[366324322,1750188636639,-261.33267164,0.00021917,6]
[366324323,1750188636648,-460.0,0.00021917,6]
[366324324,1750188636658,-460.0,0.00021917,6]
[366324325,1750188636668,-460.0,0.00021917,6]
[366324326,1750188636677,-460.0,0.00021917,6]
[366324327,1750188636687,-460.0,0.00021917,6]
[366324328,1750188636698,-460.0,0.00021917,6]
[366324329,1750188636708,-460.0,0.00021917,6]
[366324330,1750188636718,-460.0,0.00021917,6]
[366324331,1750188636731,-460.0,0.00021917,6]
[366324332,1750188636741,-460.0,0.00021917,2]
[366324333,1750188636750,-460.0,0.00021917,6]
[366324334,1750188636760,-192.4162834,0.00021917,6]
[366324335,1750188636770,-460.0,0.00021917,6]
[366324336,1750188636780,-460.0,0.00021917,6]
[366324337,1750188636790,-460.0,0.00021917,6]
[366324338,1750188636799,-460.0,0.00021917,6]
[366324339,1750188636809,-460.0,0.00021917,6]
[366324340,1750188636819,-460.0,0.00021917,6]
[366324341,1750188636829,-571.29,0.00021917,6]
[366324342,1750188636838,-460.0,0.00021917,6]
[366324343,1750188636848,-460.0,0.00021917,6]
[366324344,1750188636858,-460.0,0.00021917,6]
[366324345,1750188636867,-460.0,0.00021917,6]
[366324346,1750188636877,-349.16973284,0.00021917,6]
[366324348,1750188636886,-460.0,0.00021917,6]
[366324349,1750188636895,-460.0,0.00021917,6]
[366324351,1750188636905,-475.9,0.00021917,6]
[366324352,1750188636914,-460.0,0.00021917,6]
[366324354,1750188636924,-491.1,0.00021917,6]
[366324356,1750188636933,-460.0,0.00021917,6]
[366324358,1750188636942,-1345.19,0.00021917,6]
[366324359,1750188636952,-460.0,0.00021917,6]
[366324360,1750188636962,-460.0,0.00021917,6]
[366324361,1750188636973,-460.0,0.00021917,6]
[366324362,1750188636985,-750.89,0.00021917,6]
[366324363,1750188636995,-1248.39,0.00021917,6]
[366324364,1750188637005,-460.0,0.00021917,6]
[366324365,1750188637016,-460.0,0.00021917,6]
[366324366,1750188637025,-709.63,0.00021917,6]
[366324367,1750188637035,-460.0,0.00021917,6]
[366324368,1750188637045,-460.0,0.00021917,6]
[366324369,1750188637054,-460.0,0.00021917,6]
[366324370,1750188637064,-533.36,0.00021917,6]
[366324371,1750188637073,-1010.44,0.00021917,6]
[366324372,1750188637082,-460.0,0.00021917,6]
[366324373,1750188637092,-460.0,0.00021917,6]
[366324374,1750188637102,-460.0,0.00021917,6]
[366324375,1750188637114,-547.59803684,0.00021917,6]
[366324376,1750188637123,-460.0,0.00021917,6]
[366324377,1750188637133,-460.0,0.00021917,6]
[366324378,1750188637143,-694.92,0.00021917,6]
[366324379,1750188637154,-460.0,0.00021917,6]
[366324380,1750188637164,-528.07125081,0.00021917,6]
[366324381,1750188637173,-460.0,0.00021917,6]
[366324382,1750188637183,-171.25077532,0.00021917,6]
[366324383,1750188637193,-460.0,0.00021917,6]
[366324384,1750188637203,-460.0,0.00021917,6]
[366324385,1750188637213,-460.0,0.00021917,6]
[366324386,1750188637224,-460.0,0.00021917,6]
[366324387,1750188637236,-460.0,0.00021917,6]
[366324388,1750188637248,-460.0,0.00021917,6]
[366324389,1750188637257,-333.93611574,0.00021917,6]
[366324390,1750188637267,-460.0,0.00021917,6]
[366324391,1750188637277,-460.0,0.00021917,6]
[366324392,1750188637287,-460.0,0.00021917,6]
[366324393,1750188637297,-460.0,0.00021917,6]
[366324394,1750188637307,-460.0,0.00021917,6]
[366324395,1750188637316,-460.0,0.00021917,6]
[366324396,1750188637326,-460.0,0.00021917,6]
[366324397,1750188637336,-460.0,0.00021917,6]
[366324398,1750188637345,-460.0,0.00021917,6]
[366324399,1750188637355,-460.0,0.00021917,6]
[366324400,1750188637364,-460.0,0.00021917,6]
[366324401,1750188637374,-460.0,0.00021917,6]
[366324402,1750188637384,-460.0,0.00021917,6]
[366324403,1750188637393,-460.0,0.00021917,6]
[366324404,1750188637403,-460.0,0.00021917,6]
[366324405,1750188637412,-500.0,0.00021917,6]
[366324406,1750188637422,-460.0,0.00021917,6]
[366324407,1750188637431,-460.0,0.00021917,6]
[366324408,1750188637441,-460.0,0.00021917,6]
[366324409,1750188637450,-460.0,0.00021917,6]
[366324410,1750188637459,-599.11,0.00021917,6]
[366324411,1750188637470,-464.2,0.00021917,6]
[366324412,1750188637484,-460.0,0.00021917,6]
[366324413,1750188637494,-553.64,0.00021917,6]
[366324414,1750188637503,-506.20729142,0.00021917,6]
[366324415,1750188637513,-460.0,0.00021917,6]
[366324416,1750188637522,-460.0,0.00021917,6]
[366324417,1750188637531,-460.0,0.00021917,6]
[366324418,1750188637542,-460.0,0.00021917,6]
[366324419,1750188637552,-460.0,0.00021917,6]
[366324420,1750188637569,-460.0,0.00021917,6]
[366324421,1750188637588,-460.0,0.00021917,6]
[366324422,1750188637607,-460.0,0.00021917,6]
[366324423,1750188637620,-460.0,0.00021917,6]
[366324424,1750188637629,-460.0,0.00021917,6]
[366324425,1750188637638,-460.0,0.00021917,6]
[366324426,1750188637648,-460.0,0.00021917,6]
[366324427,1750188637658,-460.0,0.00021917,6]
[366324428,1750188637668,-942.55,0.00021917,6]
[366324429,1750188637678,-460.0,0.00021917,6]
[366324430,1750188637687,-460.0,0.00021917,6]
[366324431,1750188637696,-532.92,0.00021917,6]
[366324432,1750188637705,-2525.02,0.00021917,6]
[366324433,1750188637715,-460.0,0.00021917,6]
[366324434,1750188637725,-460.0,0.00021917,6]
[366324435,1750188637737,-460.0,0.00021917,6]
[366324436,1750188637747,-460.0,0.00021917,6]
[366324437,1750188637757,-1066.37,0.00021917,6]
[366324438,1750188637766,-989.0147467,0.00021918,7]
[366324439,1750188637775,-500.0,0.00021973,2]
[366324440,1750188637785,-10774.12170742,0.00022,2]
[366324441,1750188637795,-170.71045681,0.00022,2]
[366324442,1750188637809,-5963.68983581,0.00022,2]
[366324443,1750188637818,-3207.16837268,0.00022,2]
[366324444,1750188637827,-500.0,0.00022026,2]
[366324445,1750188637837,-500.0,0.00022026,2]
[366324446,1750188637847,-500.0,0.00022026,2]
[366324447,1750188637857,-441.69351123,0.00022026,2]
[366324448,1750188637866,-500.0,0.00022026,2]
[366324449,1750188637876,-500.0,0.00022026,2]
[366324450,1750188637885,-626.76850333,0.00022026,2]
[366324451,1750188637894,-500.0,0.00022026,2]
[366324452,1750188637904,-500.0,0.00022026,2]
[366324453,1750188637913,-500.0,0.00022026,2]
[366324454,1750188637922,-500.0,0.00022026,2]
[366324455,1750188637932,-500.0,0.00022026,2]
[366324456,1750188637941,-500.0,0.00022026,2]
[366324457,1750188637951,-500.0,0.00022026,2]
[366324458,1750188637960,-500.0,0.00022026,2]
[366324459,1750188637970,-460.0,0.00022027,6]
[366324460,1750188637981,-607.62,0.00022027,6]
[366324464,1750188638160,-460.0,0.00022027,6]
[366324465,1750188638170,-577.1189379,0.00022027,6]
[366324466,1750188638180,-460.0,0.00022027,2]
[366324467,1750188638189,-151.0,0.00022027,3]
[366324468,1750188638199,-246.30201214,0.00022027,2]
[366324469,1750188638211,-151.0,0.00022027,2]
[366324470,1750188638220,-525.36,0.00022027,6]
[366324471,1750188638230,-460.0,0.00022027,6]
[366324472,1750188638242,-460.0,0.00022027,6]
[366324474,1750188638252,-460.0,0.00022027,6]
[366324476,1750188638262,-506.77,0.00022027,6]
[366324477,1750188638271,-151.0,0.00022027,3]
[366324478,1750188638281,-151.0,0.00022027,3]
[366324479,1750188638291,-500.0,0.00022027,3]
[366324480,1750188638301,-460.0,0.00022027,6]
[366324481,1750188638311,-460.0,0.00022027,6]
[366324482,1750188638321,-151.0,0.00022027,3]
[366324483,1750188638330,-460.0,0.00022027,6]
[366324484,1750188638339,-151.0,0.00022027,3]
[366324485,1750188638348,-151.0,0.00022027,3]
[366324486,1750188638357,-152.64250514,0.00022027,3]
[366324487,1750188638367,-300.28477608,0.00022027,3]
[366324488,1750188638376,-460.0,0.00022027,6]
[366324489,1750188638385,-1345.19,0.00022027,6]
[366324491,1750188638395,-460.0,0.00022027,6]
[366324493,1750188638404,-460.0,0.00022027,6]
[366324494,1750188638413,-460.0,0.00022027,6]
[366324495,1750188638423,-750.89,0.00022027,6]
[366324496,1750188638433,-1248.39,0.00022027,6]
[366324497,1750188638442,-460.0,0.00022027,6]
[366324499,1750188638452,-424.92,0.00022027,6]
[366324501,1750188638461,-709.63,0.00022027,6]
[366324503,1750188638471,-569.95,0.00022027,6]
[366324505,1750188638482,-1010.44,0.00022027,6]
[366324507,1750188638492,-570.35,0.00022027,6]
[366324509,1750188638501,-460.0,0.00022027,6]
[366324510,1750188638511,-460.0,0.00022027,6]
[366324512,1750188638520,-460.0,0.00022027,6]
[366324513,1750188638534,-694.92,0.00022027,6]
[366324515,1750188638543,-460.0,0.00022027,6]
[366324516,1750188638554,-460.0,0.00022027,6]
[366324517,1750188638568,-432.58735518,0.00022027,6]
[366324518,1750188638577,-460.0,0.00022027,6]
[366324519,1750188638587,-460.0,0.00022027,6]
[366324520,1750188638597,-460.0,0.00022027,6]
[366324521,1750188638608,-460.0,0.00022027,6]
[366324522,1750188638617,-460.0,0.00022027,6]
[366324523,1750188638627,-460.0,0.00022027,6]
[366324524,1750188638638,-460.0,0.00022027,6]
[366324526,1750188638647,-460.0,0.00022027,6]
[366324528,1750188638657,-460.0,0.00022027,6]
[366324529,1750188638667,-460.0,0.00022027,6]
[366324530,1750188638677,-585.97040296,0.00022027,6]
[366324531,1750188638686,-460.0,0.00022027,6]
[366324532,1750188638696,-352.38,0.00022027,6]
[366324533,1750188638706,-460.0,0.00022027,6]
[366324534,1750188638716,-460.0,0.00022027,6]
[366324535,1750188638726,-460.0,0.00022027,6]
[366324536,1750188638735,-460.0,0.00022027,6]
[366324537,1750188638745,-460.0,0.00022027,6]
[366324538,1750188638754,-460.0,0.00022027,6]
[366324539,1750188638764,-460.0,0.00022027,6]
[366324540,1750188638774,-460.0,0.00022027,6]
[366324541,1750188638784,-599.11,0.00022027,6]
[366324542,1750188638793,-464.2,0.00022027,6]
[366324543,1750188638803,-460.0,0.00022027,6]
[366324544,1750188638812,-553.64,0.00022027,6]
[366324545,1750188638822,-392.1210332,0.00022027,6]
[366324546,1750188638832,-460.0,0.00022027,6]
[366324547,1750188638841,-355.5,0.00022027,6]
[366324548,1750188638851,-460.0,0.00022027,6]
[366324549,1750188638860,-460.0,0.00022027,6]
[366324550,1750188638870,-460.0,0.00022027,6]
[366324551,1750188638879,-460.0,0.00022027,6]
[366324552,1750188638889,-460.0,0.00022027,6]
[366324553,1750188638899,-460.0,0.00022027,6]
[366324554,1750188638908,-460.0,0.00022027,6]
[366324555,1750188638918,-942.55,0.00022027,6]
[366324556,1750188638927,-460.0,0.00022027,6]
[366324557,1750188638937,-460.0,0.00022027,6]
[366324558,1750188638947,-532.92,0.00022027,6]
[366324559,1750188638956,-2525.02,0.00022027,6]
[366324560,1750188638965,-460.0,0.00022027,6]
[366324561,1750188638975,-460.0,0.00022027,6]
[366324562,1750188638985,-460.0,0.00022027,6]
[366324563,1750188638995,-1066.37,0.00022027,6]
[366324564,1750188639004,-151.0,0.00022027,3]
[366324565,1750188639013,-338.74207941,0.00022038,6]
[366324566,1750188639023,-151.0,0.00022054,3]
[366324567,1750188639033,-548.28354863,0.00022054,3]
[366324568,1750188639042,-209.3546536,0.00022054,3]
[366324569,1750188639051,-151.0,0.00022054,3]
[366324570,1750188639061,-151.0,0.00022082,3]
[366324571,1750188639070,-151.0,0.00022082,3]
[366324572,1750188639080,-923.09,0.000221,7]
[366324573,1750188639094,-151.0,0.00022109,3]
[366324574,1750188639104,-151.0,0.00022109,3]
[366324575,1750188639114,-207.4,0.00022117,2]
[366324576,1750188639123,-460.0,0.00022136,6]
[366324577,1750188639133,-460.0,0.00022136,2]
[366324578,1750188639142,-460.0,0.00022136,6]
[366324579,1750188639152,-460.0,0.00022136,6]
[366324580,1750188639161,-460.0,0.00022136,6]
[366324581,1750188639171,-460.0,0.00022136,6]
[366324582,1750188639180,-460.0,0.00022136,6]
[366324583,1750188639190,-460.0,0.00022136,6]
[366324584,1750188639200,-460.0,0.00022136,6]
[366324585,1750188639210,-1345.19,0.00022136,6]
[366324586,1750188639219,-460.0,0.00022136,6]
[366324587,1750188639228,-460.0,0.00022136,6]
[366324588,1750188639239,-750.89,0.00022136,6]
[366324589,1750188639248,-1248.39,0.00022136,6]
[366324590,1750188639258,-460.0,0.00022136,6]
[366324591,1750188639267,-709.63,0.00022136,6]
[366324592,1750188639277,-1010.44,0.00022136,6]
[366324593,1750188639287,-460.0,0.00022136,6]
[366324594,1750188639296,-460.0,0.00022136,6]
[366324595,1750188639306,-460.0,0.00022136,6]
[366324596,1750188639315,-694.92,0.00022136,6]
[366324597,1750188639325,-174.6,0.00022136,6]
[366324598,1750188639334,-460.0,0.00022136,6]
[366324599,1750188639343,-460.0,0.00022136,6]
[366324600,1750188639353,-460.0,0.00022136,6]
[366324601,1750188639363,-460.0,0.00022136,6]
[366324602,1750188639372,-460.0,0.00022136,6]
[366324603,1750188639381,-460.0,0.00022136,6]
[366324604,1750188639391,-460.0,0.00022136,6]
[366324605,1750188639400,-460.0,0.00022136,6]
[366324606,1750188639410,-460.0,0.00022136,6]
[366324607,1750188639419,-460.0,0.00022136,6]
[366324608,1750188639429,-460.0,0.00022136,6]
[366324609,1750188639438,-460.0,0.00022136,6]
[366324610,1750188639448,-252.35,0.00022136,6]
[366324611,1750188639457,-460.0,0.00022136,6]
[366324612,1750188639467,-460.0,0.00022136,6]
[366324613,1750188639476,-519.96,0.00022136,6]
[366324614,1750188639486,-460.0,0.00022136,6]
[366324615,1750188639495,-460.0,0.00022136,6]
[366324616,1750188639505,-460.0,0.00022136,6]
[366324617,1750188639514,-460.0,0.00022136,6]
[366324618,1750188639523,-599.11,0.00022136,6]
[366324619,1750188639533,-464.2,0.00022136,6]
[366324620,1750188639542,-460.0,0.00022136,6]
[366324621,1750188639551,-553.64,0.00022136,6]
[366324622,1750188639561,-460.0,0.00022136,6]
[366324623,1750188639575,-460.0,0.00022136,6]
[366324624,1750188639584,-460.0,0.00022136,6]
[366324625,1750188639594,-460.0,0.00022136,6]
[366324626,1750188639605,-460.0,0.00022136,6]
[366324627,1750188639615,-460.0,0.00022136,6]
[366324628,1750188639625,-460.0,0.00022136,6]
[366324629,1750188639634,-460.0,0.00022136,6]
[366324630,1750188639643,-942.55,0.00022136,6]
[366324631,1750188639653,-460.0,0.00022136,6]
[366324632,1750188639662,-540.0,0.00022136,6]
[366324633,1750188639671,-532.92,0.00022136,6]
[366324634,1750188639680,-2525.02,0.00022136,6]
[366324635,1750188639689,-460.0,0.00022136,6]
[366324636,1750188639699,-460.0,0.00022136,6]
[366324637,1750188639708,-1066.37,0.00022136,6]
[366324638,1750188639719,-151.0,0.00022137,3]
[366324639,1750188639729,-245.0,0.00022164,3]
[366324640,1750188639740,-338.74207941,0.00022176,6]
[366324641,1750188639750,-5000.0,0.00022217,2]
[366324642,1750188639759,-151.0,0.00022217,2]
[366324643,1750188639769,-4930.63174128,0.00022217,2]
[366324644,1750188639779,-500.0,0.00022217,2]
[366324645,1750188639788,-500.0,0.00022217,2]
[366324646,1750188639798,-500.0,0.00022217,2]
[366324647,1750188639807,-500.0,0.00022217,2]
[366324648,1750188639816,-500.0,0.00022217,2]
[366324649,1750188639825,-500.0,0.00022217,2]
[366324650,1750188639834,-500.0,0.00022217,2]
[366324651,1750188639843,-500.0,0.00022217,2]
[366324652,1750188639853,-500.0,0.00022217,2]
[366324653,1750188639862,-500.0,0.00022217,2]
[366324654,1750188639872,-500.0,0.00022217,2]
[366324655,1750188639881,-500.0,0.00022217,2]
[366324656,1750188639890,-500.0,0.00022217,2]
[366324657,1750188639900,-500.0,0.00022217,2]
[366324658,1750188639909,-500.0,0.00022217,2]
[366324659,1750188639919,-160.0,0.00022245,2]
[366324660,1750188639928,-460.0,0.00022246,6]
[366324661,1750188639937,-200.85,0.00022246,2]
[366324662,1750188639947,-460.0,0.00022246,6]
[366324663,1750188639956,-460.0,0.00022246,6]
[366324664,1750188639966,-460.0,0.00022246,6]
[366324665,1750188639976,-460.0,0.00022246,6]
[366324666,1750188639987,-460.0,0.00022246,6]
[366324667,1750188639997,-387.85346308,0.00022246,6]
[366324668,1750188640006,-460.0,0.00022246,6]
[366324669,1750188640016,-1345.19,0.00022246,6]
[366324670,1750188640025,-173.6,0.00022246,6]
[366324671,1750188640035,-460.0,0.00022246,6]
[366324672,1750188640046,-750.89,0.00022246,6]
[366324673,1750188640055,-1248.39,0.00022246,6]
[366324674,1750188640066,-460.0,0.00022246,6]
[366324675,1750188640077,-709.63,0.00022246,6]
[366324676,1750188640090,-1010.44,0.00022246,6]
[366324677,1750188640106,-460.0,0.00022246,6]
[366324678,1750188640116,-460.0,0.00022246,6]
[366324679,1750188640126,-460.0,0.00022246,6]
[366324680,1750188640136,-694.92,0.00022246,6]
[366324681,1750188640146,-460.0,0.00022246,6]
[366324682,1750188640156,-499.9,0.00022246,6]
[366324683,1750188640166,-460.0,0.00022246,6]
[366324684,1750188640175,-220.72,0.00022246,6]
[366324685,1750188640186,-460.0,0.00022246,6]
[366324686,1750188640195,-460.0,0.00022246,6]
[366324687,1750188640205,-460.0,0.00022246,6]
[366324688,1750188640215,-460.0,0.00022246,6]
[366324689,1750188640224,-513.64980581,0.00022246,6]
[366324690,1750188640235,-460.0,0.00022246,6]
[366324691,1750188640245,-460.0,0.00022246,6]
[366324692,1750188640255,-460.0,0.00022246,6]
[366324693,1750188640265,-460.0,0.00022246,6]
[366324694,1750188640274,-460.0,0.00022246,6]
[366324695,1750188640283,-460.0,0.00022246,6]
[366324696,1750188640292,-460.0,0.00022246,6]
[366324697,1750188640301,-460.0,0.00022246,6]
[366324698,1750188640310,-460.0,0.00022246,6]
[366324699,1750188640319,-599.11,0.00022246,6]
[366324700,1750188640328,-464.2,0.00022246,6]
[366324701,1750188640337,-520.95,0.00022246,6]
[366324702,1750188640347,-553.64,0.00022246,6]
[366324704,1750188640356,-460.0,0.00022246,6]
[366324705,1750188640366,-460.0,0.00022246,6]
[366324706,1750188640375,-460.0,0.00022246,6]
[366324707,1750188640384,-460.0,0.00022246,6]
[366324708,1750188640393,-460.0,0.00022246,6]
[366324709,1750188640403,-317.31612188,0.00022246,6]
[366324710,1750188640413,-224.5,0.00022246,6]
[366324711,1750188640422,-460.0,0.00022246,6]
[366324712,1750188640431,-942.55,0.00022246,6]
[366324713,1750188640441,-460.0,0.00022246,6]
[366324714,1750188640450,-532.92,0.00022246,6]
[366324715,1750188640459,-2525.02,0.00022246,6]
[366324716,1750188640468,-460.0,0.00022246,6]
[366324717,1750188640477,-460.0,0.00022246,6]
[366324718,1750188640487,-1066.37,0.00022246,6]
[366324719,1750188640497,-500.0,0.00022266,2]
[366324720,1750188640507,-500.0,0.0002227,2]
[366324721,1750188640516,-500.0,0.0002227,2]
[366324722,1750188640526,-500.0,0.00022278,2]
[366324723,1750188640536,-500.0,0.00022288,2]
[366324724,1750188640546,-406.66146165,0.00022288,2]
[366324725,1750188640556,-107.60184443,0.00022314,7]
[366324726,1750188640577,-231.14023498,0.00022314,7]
[366324727,1750188640587,-500.0,0.00022326,2]
[366324728,1750188640597,-500.0,0.00022326,2]
[366324729,1750188640608,-460.0,0.00022356,6]
[366324730,1750188640617,-460.0,0.00022356,6]
[366324731,1750188640627,-494.0,0.00022356,6]
[366324732,1750188640636,-460.0,0.00022356,6]
[366324733,1750188640646,-454.2,0.00022356,6]
[366324734,1750188640656,-185.06,0.00022356,6]
[366324735,1750188640666,-460.0,0.00022356,6]
[366324737,1750188640675,-1345.19,0.00022356,6]
[366324739,1750188640685,-460.0,0.00022356,6]
[366324740,1750188640694,-750.89,0.00022356,6]
[366324742,1750188640704,-1248.39,0.00022356,6]
[366324743,1750188640713,-460.0,0.00022356,6]
[366324744,1750188640722,-709.63,0.00022356,6]
[366324746,1750188640733,-1010.44,0.00022356,6]
[366324748,1750188640742,-460.0,0.00022356,6]
[366324749,1750188640751,-460.0,0.00022356,6]
[366324751,1750188640761,-694.92,0.00022356,6]
[366324753,1750188640770,-460.0,0.00022356,6]
[366324755,1750188640780,-326.36962437,0.00022356,6]
[366324756,1750188640789,-460.0,0.00022356,6]
[366324758,1750188640800,-460.0,0.00022356,6]
[366324759,1750188640809,-460.0,0.00022356,6]
[366324760,1750188640819,-460.0,0.00022356,6]
[366324761,1750188640829,-460.0,0.00022356,6]
[366324762,1750188640839,-460.0,0.00022356,6]
[366324763,1750188640849,-446.35,0.00022356,6]
[366324764,1750188640859,-253.8,0.00022356,6]
[366324765,1750188640868,-460.0,0.00022356,6]
[366324766,1750188640877,-599.11,0.00022356,6]
[366324767,1750188640887,-464.2,0.00022356,6]
[366324768,1750188640897,-553.64,0.00022356,6]
[366324769,1750188640907,-460.0,0.00022356,6]
[366324770,1750188640916,-460.0,0.00022356,6]
[366324771,1750188640926,-460.0,0.00022356,6]
[366324772,1750188640935,-460.0,0.00022356,6]
[366324773,1750188640945,-460.0,0.00022356,6]
[366324774,1750188640954,-942.55,0.00022356,6]
[366324775,1750188640963,-386.08646977,0.00022356,6]
[366324776,1750188640973,-532.92,0.00022356,6]
[366324777,1750188640984,-2525.02,0.00022356,6]
[366324778,1750188640995,-460.0,0.00022356,6]
[366324779,1750188641004,-460.0,0.00022356,6]
[366324780,1750188641016,-1066.37,0.00022356,6]
[366324781,1750188641025,-3351.81,0.000224,7]
[366324782,1750188641035,-744.18,0.00022413,7]
[366324783,1750188641046,-338.74207941,0.00022452,7]
[366324784,1750188641056,-460.0,0.00022465,6]
[366324785,1750188641065,-460.0,0.00022465,6]
[366324786,1750188641074,-460.0,0.00022465,6]
[366324787,1750188641084,-460.0,0.00022465,6]
[366324788,1750188641093,-1345.19,0.00022465,6]
[366324789,1750188641103,-460.0,0.00022465,6]
[366324790,1750188641113,-750.89,0.00022465,6]
[366324791,1750188641122,-1248.39,0.00022465,6]
[366324792,1750188641131,-460.0,0.00022465,6]
[366324793,1750188641141,-709.63,0.00022465,6]
[366324794,1750188641151,-1010.44,0.00022465,6]
[366324795,1750188641160,-460.0,0.00022465,6]
[366324796,1750188641169,-460.0,0.00022465,6]
[366324797,1750188641179,-694.92,0.00022465,6]
[366324798,1750188641189,-460.0,0.00022465,6]
[366324799,1750188641198,-460.0,0.00022465,6]
[366324800,1750188641207,-460.0,0.00022465,6]
[366324801,1750188641217,-460.0,0.00022465,6]
[366324802,1750188641226,-460.0,0.00022465,6]
[366324803,1750188641239,-460.0,0.00022465,6]
[366324804,1750188641249,-451.65,0.00022465,6]
[366324805,1750188641259,-460.0,0.00022465,6]
[366324806,1750188641269,-599.11,0.00022465,6]
[366324807,1750188641278,-464.2,0.00022465,6]
[366324808,1750188641288,-553.64,0.00022465,6]
[366324809,1750188641297,-460.0,0.00022465,6]
[366324810,1750188641307,-460.0,0.00022465,6]
[366324811,1750188641317,-460.0,0.00022465,6]
[366324812,1750188641326,-460.0,0.00022465,6]
[366324813,1750188641335,-460.0,0.00022465,6]
[366324814,1750188641344,-942.55,0.00022465,6]
[366324815,1750188641354,-532.92,0.00022465,6]
[366324816,1750188641363,-2525.02,0.00022465,6]